fUST/lending_fUST_20250320
["ID","MTS","AMOUNT","RATE_DAILY","PERIOD"]
[356436024,1742447438645,-185.88930723,0.000381,14]
[356436025,1742447438655,-201.0,0.00038128,7]
[356436026,1742447438665,-229.02753543,0.0003819,14]
[356436027,1742447438674,-1517.303,0.000382,120]
[356436028,1742447438684,-199.0,0.000382,120]
[356436029,1742447438693,-199.0,0.000382,90]
[356436030,1742447438703,-199.0,0.000382,120]
[356436031,1742447438712,-183.84328922,0.000382,2]
[356436032,1742447438722,-500.0,0.00038245,15]
[356436033,1742447438731,-500.0,0.00038245,15]
[356436034,1742447438741,-500.0,0.00038245,15]
[356436035,1742447438750,-500.0,0.00038245,15]
[356436036,1742447438760,-42.14026665,0.00038245,15]
[356436037,1742447438771,-457.85973335,0.00038245,15]
[356436038,1742447438781,-500.0,0.00038245,15]
[356436039,1742447438790,-500.0,0.00038245,15]
[356436040,1742447438803,-500.0,0.00038245,15]
[356436041,1742447438813,-500.0,0.00038245,15]
[356436042,1742447438823,-500.0,0.00038245,15]
[356436043,1742447438833,-500.0,0.00038245,15]
[356436044,1742447438843,-500.0,0.00038245,15]
[356436045,1742447438852,-269.7183219,0.00038245,15]
[356436046,1742447438862,-500.0,0.00038245,15]
[356436047,1742447438874,-502.63249872,0.00038245,15]
[356436048,1742447438884,-9322.91230096,0.00038246,3]
[356436086,1742447440671,-4806.65434554,0.00038246,3]
[356436088,1742447440681,-198.11886231,0.00038248,2]
[356436090,1742447440690,-209.0,0.00038248,15]
[356436092,1742447440700,-113.5482756,0.00038255,2]
[356436096,1742447440726,-587.84496629,0.00038255,2]
[356436098,1742447440735,-379.10849854,0.00038255,15]
[356436100,1742447440745,-2667.49992974,0.00038256,2]
[356436102,1742447440757,-18642.25,0.00038256,2]
[356436106,1742447440783,-13708.18307945,0.00038256,2]
[356436232,1742447443490,-1725.26007887,0.00038256,2]
[356436233,1742447443540,-503.15982363,0.00038256,2]
[356436234,1742447443551,-15317.3160462,0.00038256,2]
[356436235,1742447443603,-8947.07792414,0.00038256,2]
[356436236,1742447443614,-5765.59536499,0.00038256,2]
[356436237,1742447443627,-3332.18268747,0.00038256,2]
[356436238,1742447443639,-87389.23630501,0.00038256,2]
[356436240,1742447443649,-3474.85240186,0.00038256,2]
[356436242,1742447443660,-4206.21136439,0.00038256,2]
[356436251,1742447446615,-789.19747044,0.00038256,2]
[356436252,1742447446627,-55531.97752381,0.00038256,2]
[356436253,1742447446636,-183.84328921,0.00038256,2]
[356436254,1742447446646,-21405.17918698,0.000383,120]
[356436255,1742447446658,-2986.62091206,0.000383,120]
[356436256,1742447446669,-287.27571887,0.000383,120]
[356436257,1742447542464,-165.03549918,0.00024953,2]
[356436258,1742447726560,-150.0,0.00024953,2]
[356436261,1742447874356,-218.86736841,0.00035565,5]
[356436262,1742447883847,-300.0,0.00037893,14]
[356436263,1742447887636,-190.35027609,0.00037893,14]
[356436264,1742447887661,-59.64972391,0.000379,8]
[356436265,1742447909556,-150.0,0.00024703,2]
[356436267,1742448119378,-203.3606391,0.0002376,2]
[356436268,1742448119399,-74.65879429,0.00024,3]
[356436269,1742448397134,-263.84159973,0.00035,2]
[356436270,1742448421806,-179.54716099,0.00035,2]
[356436271,1742448421828,-120.45283901,0.00035392,2]
[356436274,1742448502708,-165.03549918,0.000252,120]
[356436275,1742448510686,-165.03549918,0.00024948,2]
[356436278,1742448543812,-283.94793138,0.00025198,2]
[356436279,1742448546036,-16.05206862,0.00025198,2]
[356436280,1742448546060,-183.94793138,0.00025199,2]
[356436289,1742448572076,-7.61650853,0.00025199,2]
[356436290,1742448572098,-635.28463149,0.00025199,2]
[356436291,1742448572120,-75.91079889,0.00025199,2]
[356436292,1742448572951,-150.0,0.00025199,2]
[356436293,1742448587845,10000.0,0.0002,2]
[356436298,1742448604604,-274.08920111,0.00025199,2]
[356436299,1742448604633,-1.94821215,0.00025199,2]
[356436300,1742448613538,-223.96258674,0.00025199,2]
[356436301,1742448618840,234.4,0.0002,2]
[356436324,1742448632729,-273.7654366,0.00025199,2]
[356436325,1742448632740,-500.0,0.00025199,2]
[356436326,1742448632750,-83.94423559,0.00025199,2]
[356436327,1742448632788,-524.58537771,0.00025199,2]
[356436328,1742448632797,-300.0,0.00025199,2]
[356436329,1742448632808,-276.03741326,0.00025199,2]
[356436330,1742448632818,-223.96258674,0.00025199,2]
[356436331,1742448632827,-58789.39145085,0.000252,120]
[356436332,1742448632854,-36272.73697286,0.000252,120]
[356436370,1742448641328,-227.11299569,0.000252,120]
[356436371,1742448641339,-44676.01707709,0.000252,120]
[356436372,1742448641349,-420.0,0.00027293,2]
[356436373,1742448641358,-208.44722073,0.000279,4]
[356436374,1742448641367,-500.0,0.00029562,2]
[356436375,1742448641377,-13735.25705772,0.00033982,2]
[356436391,1742448646852,-11164.74294228,0.00033982,2]
[356436392,1742448646863,-208.44722071,0.000344,6]
[356436393,1742448646875,-129.54716099,0.00035392,2]
[356436394,1742448646889,-1009.93410919,0.00035565,5]
[356436395,1742448646900,-1235.61266441,0.00035881,2]
[356436396,1742448646971,-165.67344509,0.00035881,2]
[356436397,1742448646980,-426.19641491,0.0003589,2]
[356436399,1742448662793,-178.72551259,0.00025199,2]
[356436402,1742448736887,-297.56885504,0.00023,2]
[356436403,1742448753109,-443.26688243,0.00023,2]
[356436404,1742448753135,-56.73311757,0.00025199,2]
[356436409,1742448812748,-482.82758426,0.00032606,30]
[356436410,1742448816956,-207.7241269,0.00033596,30]
[356436419,1742448931084,-275.08581269,0.00033,120]
[356436430,1742449565909,270.56484399,0.00012,30]
[356436431,1742449565941,11360.43515601,0.00012,30]
[356436433,1742449639683,-188.5442356,0.00021,2]
[356436436,1742449652853,-246.27627781,0.00021,2]
[356436443,1742449757154,-65.17948659,0.00021,2]
[356436444,1742449757175,-501.28279709,0.00021,2]
[356436474,1742449831822,-1046.91418731,0.00033,120]
[356436476,1742449831831,-501.118,0.00033596,30]
[356436478,1742449831841,-160.0,0.00034523,2]
[356436480,1742449831851,-3433.4687862,0.00034592,2]
[356436481,1742449831861,-400.0,0.00034608,2]
[356436483,1742449831870,-3027.79846847,0.00034609,120]
[356436485,1742449831880,-2657.26598347,0.00034709,2]
[356436492,1742449831938,-380.76687213,0.00034709,2]
[356436499,1742449831999,-21861.9671444,0.00034709,2]
[356436501,1742449832008,-4378.75774217,0.000348,2]
[356436502,1742449832018,-208.44722071,0.000349,7]
[356436504,1742449832027,-538.9827036,0.00035,2]
[356436619,1742449837795,-375.49814,0.00033596,30]
[356436620,1742449837805,-461.0172964,0.00035,2]
[356436621,1742449837815,-257.4944863,0.00035099,2]
[356436622,1742449837826,-6327.8383452,0.00035176,2]
[356436623,1742449837837,-250.0,0.00035465,2]
[356436624,1742449837847,-4378.75774217,0.00035529,2]
[356436625,1742449837857,-188.0,0.000358,30]
[356436626,1742449837866,-188.0,0.000358,60]
[356436627,1742449837876,-188.0,0.000358,90]
[356436628,1742449837885,-500.0,0.0003589,2]
[356436629,1742449837894,-4378.75774217,0.00036257,2]
[356436631,1742449837904,-4378.75774217,0.00036986,2]
[356436633,1742449837913,-1000.0,0.00037,7]
[356436636,1742449837925,-240.8030391,0.00037108,4]
[356436638,1742449837934,-560.0,0.00037123,2]
[356436639,1742449837945,-153.0,0.00037534,30]
[356436640,1742449837954,-3024.14014846,0.000379,2]
[356436641,1742449837964,-212.31262698,0.00037931,2]
[356436642,1742449837975,-2825.91332931,0.00037993,3]
[356436643,1742449837984,-830.62479766,0.00037997,2]
[356436644,1742449837994,-500.0,0.00037999,15]
[356436645,1742449838004,-455.15390908,0.00037999,15]
[356436646,1742449838014,-500.0,0.00037999,15]
[356436647,1742449838024,-2457.629203,0.00038,31]
[356436648,1742449838034,-163.45825521,0.00038,120]
[356436649,1742449838043,-14346.1621024,0.00038,120]
[356436650,1742449838061,-2500.0,0.00038,120]
[356436651,1742449838072,-5158.80435807,0.00038,120]
[356436652,1742449838083,-2818.6882401,0.00038,120]
[356436657,1742449840072,-53111.0606759,0.00038,120]
[356436658,1742449840083,-9204.20274741,0.00038,120]
[356436659,1742449840095,-10370.41649396,0.00038,120]
[356436660,1742449840107,-540.84509664,0.00038,120]
[356436662,1742449840215,-582.04603108,0.00038,120]
[356436708,1742449842841,-282.58248,0.00033596,30]
[356436709,1742449842850,-4378.75774217,0.00037714,2]
[356436710,1742449842860,-36026.4345835,0.00038,120]
[356436711,1742449842872,-376.86986144,0.00038,120]
[356436712,1742449842903,-13808.00512982,0.00038,120]
[356436713,1742449842914,-315.929,0.00038,120]
[356436714,1742449842969,-1699.10296557,0.00038,120]
[356436735,1742449846047,-7927.13730559,0.00038,120]
[356436736,1742449846111,-1288.26418683,0.00038,120]
[356436738,1742450400046,171.0,0.00018,2]
[356436775,1742451032132,-225.9557375,0.00035611,2]
[356436777,1742451032140,-200.9110784,0.00035711,2]
[356436780,1742451032150,-400.0,0.00035838,2]
[356436782,1742451032159,-11497.0350175,0.00035839,2]
[356436784,1742451032169,-500.0,0.0003589,2]
[356436786,1742451032179,-353.858,0.00036548,2]
[356436788,1742451032188,-399.0,0.00036548,2]
[356436790,1742451032197,-500.0,0.00036836,21]
[356436792,1742451032207,-180.6022793,0.00037108,4]
[356436795,1742451032217,-1642.03415334,0.00037831,2]
[356436797,1742451032226,-426.14444107,0.00037836,30]
[356436798,1742451032235,-160.0,0.00037837,2]
[356436800,1742451032244,-274.77125512,0.00037918,2]
[356436802,1742451032254,-161.68376768,0.0003793,15]
[356436804,1742451032263,-5254.39662314,0.0003793,2]
[356436807,1742451032273,-5876.79067407,0.00037931,3]
[356437356,1742451539133,-246.27627781,0.00021,2]
[356437357,1742451545579,-184.98571916,0.00021,2]
[356437358,1742451552039,-218.86736841,0.00032914,30]
[356437359,1742451604061,-150.0,0.00021,2]
[356437360,1742451615716,-186.8748709,0.000259,4]
[356437361,1742451663291,-177.38494749,0.00021,2]
[356437362,1742451772433,-220.40121909,0.000259,4]
[356437364,1742451931400,-220.40121908,0.000259,4]
[356437370,1742452004134,-573.30580964,0.00021,2]
[356437371,1742452005143,-743.63981487,0.00021,2]
[356437372,1742452011096,-150.0,0.0002079,2]
[356437391,1742452086876,-179.54716099,0.0002079,2]
[356437397,1742452157084,-854.89509205,0.0002079,2]
[356437398,1742452157105,-6650.47257431,0.00021,2]
[356437399,1742452157127,-300.0,0.00026848,2]
[356437400,1742452157148,-420.0,0.0002903,2]
[356437401,1742452157169,-283.0,0.0003139,2]
[356437453,1742452232377,-255.0,0.00033244,30]
[356437455,1742452232387,-150.0,0.00033834,2]
[356437457,1742452232396,-817.7939619,0.00034176,2]
[356437459,1742452232405,-2000.0,0.00034521,7]
[356437461,1742452232415,-3000.0,0.00034521,7]
[356437463,1742452232424,-4000.0,0.00034521,7]
[356437465,1742452232438,-2200.0,0.00034548,7]
[356437467,1742452232447,-2400.0,0.00034548,7]
[356437469,1742452232456,-3200.0,0.00034548,7]
[356437471,1742452232466,-3400.0,0.00034548,7]
[356437473,1742452232475,-4070.0615,0.00034548,7]
[356437475,1742452232483,-1488.83951666,0.00034575,2]
[356437477,1742452232493,-13433.01008096,0.00034575,2]
[356437479,1742452232502,-2600.0,0.00034575,7]
[356437481,1742452232513,-3600.0,0.00034575,7]
[356437484,1742452232522,-2800.0,0.00034603,7]
[356437487,1742452232532,-3800.0,0.00034603,7]
[356437490,1742452232541,-335.1031,0.00035041,7]
[356437492,1742452232551,-368.6134,0.00035068,7]
[356437494,1742452232559,-402.1237,0.00035068,7]
[356437496,1742452232569,-569.6752,0.00035096,7]
[356437498,1742452232578,-500.0,0.00035178,7]
[356437500,1742452232588,-550.0,0.00035205,7]
[356437502,1742452232597,-600.0,0.00035233,7]
[356437504,1742452232606,-650.0,0.00035233,7]
[356437506,1742452232616,-700.0,0.0003526,7]
[356437508,1742452232625,-500.0,0.0003589,2]
[356437510,1742452232635,-1000.0,0.00036,2]
[356437512,1742452232644,-187.3827412,0.00036857,4]
[356437514,1742452232653,-500.0,0.00036903,21]
[356437516,1742452232663,-813.05,0.00036903,21]
[356437518,1742452232672,-500.0,0.00036903,21]
[356437520,1742452232681,-671.94,0.00036903,21]
[356437522,1742452232690,-500.0,0.00036903,21]
[356437524,1742452232699,-500.0,0.00036903,21]
[356437526,1742452232709,-500.0,0.00036903,21]
[356437528,1742452232718,-500.0,0.00036903,21]
[356437530,1742452232727,-500.0,0.00036903,21]
[356437532,1742452232736,-500.0,0.00036903,21]
[356437534,1742452232746,-741.92,0.00036903,21]
[356437536,1742452232755,-281.68678026,0.00036904,7]
[356437585,1742452238166,-444.69924204,0.00036903,15]
[356437586,1742452238176,-631.72698281,0.00036904,7]
[356438000,1742452246432,-500.0,0.00036903,2]
[356438002,1742452246446,-307.32000001,0.00036903,21]
[356438005,1742452353685,-150.0,0.00024953,2]
[356438006,1742452539284,-285.21772863,0.00024703,2]
[356438011,1742452724458,-207.7241269,0.00024456,2]
[356438012,1742452859082,-275.08581269,0.00024456,2]
[356438013,1742452908854,-482.82758426,0.00024211,2]
[356438014,1742453092809,-178.72551259,0.00023969,2]
[356438015,1742453196425,-3142.80111035,0.00023969,2]
[356438016,1742453196447,-295.29365941,0.00027,2]
[356438078,1742453432428,-704.70634059,0.00027,2]
[356438081,1742453432438,-200.0,0.000298,120]
[356438084,1742453432448,-2127.5649159,0.00030903,2]
[356438086,1742453432457,-218.8673684,0.0003144,5]
[356438088,1742453432467,-400.0,0.00031754,2]
[356438090,1742453432477,-6942.3904451,0.00031755,2]
[356438092,1742453432487,-402.32017,0.00033244,30]
[356438094,1742453432497,-173.2834126,0.00034435,2]
[356438096,1742453432507,-1436.77988419,0.00034435,2]
[356438098,1742453432516,-146.76688717,0.00034525,2]
[356438103,1742453432603,-10936.22899053,0.00034525,2]
[356438104,1742453432611,-3694.33195924,0.00034526,2]
[356438105,1742453432622,-500.0,0.00034534,21]
[356438106,1742453432632,-247.8172295,0.00034534,7]
[356438107,1742453432642,-339.00185409,0.00034534,7]
[356438108,1742453432652,-500.0,0.00034534,7]
[356438109,1742453432663,-178.72551259,0.00034534,7]
[356438110,1742453432673,-500.0,0.00034534,21]
[356438111,1742453432682,-332.38,0.00034534,7]
[356438112,1742453432693,-500.0,0.00034534,21]
[356438113,1742453432704,-500.0,0.00034534,21]
[356438114,1742453432714,-500.0,0.00034534,21]
[356438115,1742453432725,-1501.76,0.00034534,21]
[356438116,1742453432737,-500.0,0.00034534,21]
[356438117,1742453432748,-500.0,0.00034534,21]
[356438118,1742453432757,-8049.1,0.00034534,21]
[356438119,1742453432769,-500.0,0.00034534,21]
[356438120,1742453432780,-500.0,0.00034534,21]
[356438121,1742453432789,-2546.54,0.00034534,21]
[356438122,1742453432801,-2062.31,0.00034534,21]
[356438123,1742453432811,-500.0,0.00034534,21]
[356438124,1742453432821,-500.0,0.00034534,21]
[356438125,1742453432831,-168.91650719,0.00034534,7]
[356438126,1742453432842,-1892.7,0.00034534,21]
[356438127,1742453432852,-500.0,0.00034534,21]
[356438128,1742453432862,-1877.57,0.00034534,21]
[356438129,1742453432871,-500.0,0.00034534,21]
[356438130,1742453432882,-510.19,0.00034534,21]
[356438131,1742453432980,-500.0,0.00034534,21]
[356438132,1742453432989,-500.0,0.00034534,21]
[356438133,1742453432999,-500.0,0.00034534,21]
[356438134,1742453433008,-1260.08,0.00034534,21]
[356438135,1742453433017,-500.0,0.00034534,21]
[356438136,1742453433027,-3909.89,0.00034534,21]
[356438137,1742453433037,-500.0,0.00034534,21]
[356438138,1742453433047,-500.0,0.00034534,21]
[356438139,1742453433056,-500.0,0.00034534,21]
[356438140,1742453433065,-500.0,0.00034534,21]
[356438141,1742453433075,-500.0,0.00034534,21]
[356438142,1742453433084,-500.0,0.00034534,21]
[356438143,1742453433094,-200.95117075,0.00034534,21]
[356438144,1742453433104,-712.79,0.00034534,21]
[356438145,1742453433114,-538.79,0.00034534,21]
[356438146,1742453433124,-1614.97616476,0.00034534,21]
[356438147,1742453433136,-9742.45383524,0.00034534,21]
[356438148,1742453433146,-500.0,0.00034534,21]
[356438149,1742453433156,-500.0,0.00034534,21]
[356438150,1742453433176,-500.0,0.00034534,21]
[356438151,1742453433187,-1329.91,0.00034534,21]
[356438152,1742453433198,-403.83187333,0.00034534,21]
[356438153,1742453433207,-4045.42,0.00034534,21]
[356438154,1742453433217,-500.0,0.00034534,21]
[356438155,1742453433227,-8021.78524582,0.00034534,21]
[356438310,1742453443676,-302.0,0.00033244,30]
[356438313,1742453443686,-80.01052997,0.00034533,7]
[356438315,1742453443698,-93.46153068,0.00034533,7]
[356438318,1742453443707,-587.30129786,0.00034533,7]
[356438321,1742453443716,-671.2341412,0.00034534,21]
[356438489,1742453446602,-1629.40732672,0.00034534,21]
[356438496,1742453761542,5516.5,0.00018,2]
[356438497,1742454548264,-260.00407442,0.00027,2]
[356438502,1742454632646,-57.07592558,0.00027,2]
[356438504,1742454632656,-910.59,0.0003,120]
[356438506,1742454632666,-250.0,0.00031684,2]
[356438508,1742454632675,-300.0,0.00032154,2]
[356438510,1742454632684,-7165.32087442,0.00032155,2]
[356438512,1742454632697,-6859.95737986,0.00032155,2]
[356438529,1742454632848,-7836.68889012,0.00032155,2]
[356438531,1742454632858,-10000.0,0.0003306,2]
[356438533,1742454632867,-210.37927709,0.00034388,2]
[356438535,1742454632876,-2955.4655674,0.00034489,2]
[356438537,1742454632885,-336.8748709,0.0003449,30]
[356438539,1742454632895,-2955.4655674,0.0003449,2]
[356438541,1742454632904,-452.57049345,0.00034498,7]
[356438543,1742454632913,-1240.69959721,0.00034499,2]
[356438545,1742454632923,-6716.50504048,0.00034499,2]
[356438547,1742454632932,-3876.87,0.00034499,21]
[356438549,1742454632943,-500.0,0.00034499,21]
[356438551,1742454632952,-500.0,0.00034499,21]
[356438553,1742454632961,-1675.69,0.00034499,21]
[356438555,1742454632970,-500.0,0.00034499,21]
[356438557,1742454632979,-19208.23,0.00034499,21]
[356438559,1742454632989,-12769.87,0.00034499,21]
[356438561,1742454632998,-3745.52,0.00034499,21]
[356438563,1742454633007,-639.101203,0.00034499,14]
[356438565,1742454633017,-875.05,0.00034499,21]
[356438567,1742454633026,-639.101203,0.00034499,14]
[356438569,1742454633036,-4469.14,0.00034499,21]
[356438571,1742454633045,-1439.19,0.00034499,21]
[356438573,1742454633055,-1312.02,0.00034499,21]
[356438575,1742454633064,-41323.21,0.00034499,21]
[356438578,1742454633074,-7072.99,0.00034499,21]
[356438580,1742454633083,-500.0,0.00034499,21]
[356438582,1742454633093,-5660.87168673,0.00034499,21]
[356438879,1742454638572,-9119.46831327,0.00034499,21]
[356438880,1742454638583,-1976.38,0.00034499,21]
[356438881,1742454638593,-2196.46968392,0.00034499,21]
[356438883,1742454638604,-1351.75874408,0.00034499,21]
[356438884,1742454638617,-4165.501572,0.00034499,21]
[356438885,1742454638626,-2282.78582549,0.00034499,21]
[356438902,1742454640877,-500.0,0.0003,21]
[356438903,1742454640887,-24883.46703374,0.00034499,21]
[356438913,1742454643707,-7728.64714077,0.00034499,21]
[356438914,1742454643717,-1945.63526067,0.00034499,21]
[356438915,1742454643760,-494.79473933,0.00034499,21]
[356438916,1742454643770,-500.0,0.00034499,21]
[356438917,1742454643781,-2436.64406067,0.00034499,21]
[356438918,1742454643813,-470.812927,0.00034499,21]
[356438950,1742454646778,-1478.80352992,0.00034499,21]
[356438951,1742454736528,-200.0,0.00021,2]
[356438952,1742454870119,509.54,0.00018,2]
[356438953,1742455038196,-274.08920111,0.00021,2]
[356438954,1742455251643,-225.91079889,0.00021,2]
[356438955,1742455251669,-425.67750111,0.00021,2]
[356438956,1742455464242,-218.86736841,0.00031862,120]
[356438968,1742455766151,-439.50198548,0.00021,2]
[356438986,1742455831830,-1767.7638958,0.00031705,2]
[356438987,1742455831840,-691.92409539,0.00031862,120]
[356438988,1742455831850,-228.84949468,0.000319,6]
[356438989,1742455831859,-200.0,0.00031904,2]
[356438990,1742455831869,-5596.50651413,0.00032109,2]
[356438991,1742455831882,-2507.53915317,0.00032109,2]
[356438992,1742455831891,-5495.9456556,0.00032181,2]
[356438993,1742455831901,-608.5,0.0003368,30]
[356438994,1742455831910,-5124.18144571,0.00034,14]
[356438995,1742455831920,-6228.39441381,0.00034247,2]
[356438996,1742455831930,-804.84380163,0.00034247,30]
[356439012,1742455837643,-274.7509144,0.00034246,7]
[356439013,1742455837653,-133.0009892,0.00034246,7]
[356439014,1742455837665,-92.90980969,0.00034246,7]
[356439015,1742455837674,-323.44149731,0.00034246,7]
[356439016,1742455837686,-176.55850269,0.00034246,7]
[356439017,1742455837696,-323.44149731,0.00034246,7]
[356439018,1742455837708,-176.55850269,0.00034246,7]
[356439019,1742455837717,-506.91178311,0.00034246,7]
[356439020,1742455837727,-130.15676345,0.00034247,30]
[356439022,1742455837751,-200.65651592,0.00034247,30]
[356439023,1742455837762,-158.9563301,0.00034247,30]
[356439024,1742455837771,-316.79934542,0.00034465,7]
[356439025,1742455837781,-1379.22,0.00034466,21]
[356439026,1742455837791,-5238.41928396,0.00034466,21]
[356439032,1742455840079,-223.96826078,0.00034466,21]
[356439039,1742455841604,-206.01159091,0.00034466,21]
[356439217,1742455863450,-217.90913787,0.00034121,2]
[356439218,1742455863475,-58.5205185,0.00034153,2]
[356439219,1742455940813,500.0,0.00021,2]
[356439220,1742455997618,506.04,0.00018,2]
[356439222,1742456614169,1337.513457,0.00018,120]
[356439223,1742456809183,-258.02357131,0.00031862,2]
[356439239,1742456981019,236.29472195,0.00024953,2]
[356439258,1742457032015,-210.03891628,0.00031797,5]
[356439260,1742457032025,-160.0,0.0003248,2]
[356439261,1742457032035,-552.6955875,0.00032509,2]
[356439262,1742457032046,-3795.6882477,0.00032769,2]
[356439263,1742457032057,-205.8817139,0.0003349,4]
[356439264,1742457032067,-205.38690976,0.000339,6]
[356439265,1742457032077,-2009.78138557,0.00034052,2]
[356439266,1742457032086,-400.0,0.00034142,2]
[356439267,1742457032097,-29537.5854436,0.00034143,2]
[356439268,1742457032107,-500.0,0.00034152,21]
[356439269,1742457032117,-1274.49,0.00034152,21]
[356439270,1742457032126,-500.0,0.00034152,7]
[356439271,1742457032136,-177.96752391,0.00034152,7]
[356439272,1742457032146,-264.5063725,0.00034152,7]
[356439273,1742457032156,-3358.25252024,0.00034153,2]
[356439274,1742457032165,-620.34979861,0.00034153,2]
[356439275,1742457032175,-500.0,0.00034153,2]
[356439276,1742457032184,-500.0,0.00034153,21]
[356439277,1742457032194,-500.0,0.00034153,21]
[356439278,1742457032204,-500.0,0.00034153,21]
[356439279,1742457032214,-500.0,0.00034153,2]
[356439280,1742457032223,-569.56719437,0.00034153,21]
[356439281,1742457032233,-711.0,0.00034153,21]
[356439282,1742457032243,-500.0,0.00034153,21]
[356439283,1742457032252,-500.0,0.00034153,21]
[356439284,1742457032262,-500.0,0.00034153,21]
[356439285,1742457032273,-2037.83,0.00034153,21]
[356439286,1742457032283,-727.75876674,0.00034153,21]
[356439287,1742457032312,-394.47123326,0.00034153,21]
[356439288,1742457032322,-1300.02,0.00034153,21]
[356439289,1742457032332,-500.0,0.00034153,21]
[356439290,1742457032342,-969.69,0.00034153,21]
[356439291,1742457032351,-500.0,0.00034153,21]
[356439292,1742457032360,-1296.62,0.00034153,21]
[356439293,1742457032370,-500.0,0.00034153,21]
[356439294,1742457032380,-500.0,0.00034153,21]
[356439295,1742457032390,-500.0,0.00034153,21]
[356439296,1742457032400,-500.0,0.00034153,21]
[356439297,1742457032409,-846.49,0.00034153,21]
[356439298,1742457032419,-2597.93,0.00034153,21]
[356439299,1742457032429,-561.8,0.00034153,21]
[356439300,1742457032439,-500.0,0.00034153,21]
[356439301,1742457032449,-259.02773084,0.00034153,21]
[356439302,1742457033440,-168.26,0.00034153,21]
[356439367,1742457040367,-681.38,0.00034152,21]
[356439369,1742457040378,-1415.12226916,0.00034153,21]
[356439371,1742457040388,-500.0,0.00034153,21]
[356439373,1742457040398,-500.0,0.00034153,21]
[356439377,1742457040408,-114.2647669,0.00034153,21]
[356439454,1742457041173,-222.51392446,0.00034153,21]
[356439469,1742457041310,168.26,0.00024953,2]
[356439879,1742457046264,-429.355,0.00034152,21]
[356439883,1742457048262,-70.645,0.00034152,21]
[356439884,1742457528925,10000.0,0.00018,2]
[356439885,1742457602194,-213.85502779,0.000334,120]
[356439886,1742457614036,-6.14497221,0.000334,120]
[356439887,1742457614062,-154.4112854,0.00033464,4]
[356439888,1742457614086,-49.24028837,0.000337,2]
[356439889,1742457634697,-154.4112854,0.00033711,2]
[356439890,1742457637224,-300.0,0.00034067,30]
[356439891,1742457648650,-176.22338134,0.000334,120]
[356439892,1742457654963,-181.5599978,0.00033,2]
[356439893,1742457697315,-177.10636203,0.00024953,2]
[356439894,1742457711592,-4.45363577,0.00024953,2]
[356439895,1742457711615,-150.37076383,0.00028,3]
[356439896,1742457711638,-114.29276237,0.00032999,2]
[356439897,1742457723988,-177.10636203,0.00024703,2]
[356439898,1742457724018,-92.27342537,0.00024703,2]
[356439899,1742458014143,-199.26740084,0.00024703,2]
[356439900,1742458045610,-248.8156253,0.000334,120]
[356439901,1742458050319,-64.36443591,0.000334,120]
[356439902,1742458050348,-85.63556409,0.0003381,20]
[356439903,1742458064221,-269.3797874,0.00025,7]
[356439904,1742458073231,-273.45116038,0.0003381,21]
[356439905,1742458102582,-234.20810737,0.00024456,2]
[356439906,1742458107955,-224.53933521,0.0003381,20]
[356439907,1742458107979,-44.57782676,0.0003381,20]
[356439908,1742458117600,-500.0,0.0003381,21]
[356439909,1742458120322,-500.0,0.0003381,21]
[356439910,1742458123048,-511.10833797,0.0003381,21]
[356439911,1742458139214,-151.43978675,0.00025,7]
[356439913,1742458150079,-234.45727906,0.00024456,2]
[356439914,1742458150101,-98.75703324,0.00025,7]
[356439915,1742458150435,-255.99154232,0.0003381,21]
[356439916,1742458152940,-218.49776043,0.00024211,2]
[356439976,1742458237949,-50.61940154,0.00024211,2]
[356439978,1742458237959,-486.35704856,0.00025,7]
[356439984,1742458238878,-187.25236954,0.00025,7]